bitfinex/quotes_ETHUSD_20251107
["timestamp","ask_amount","ask_price","bid_price","bid_amount"]
[1762521457478,0.002,3231.8,3231.7,0.4954]
[1762521457647,0.002,3231.8,3231.1,0.4622]
[1762521460067,3.13493351,3231.8,3230.9,0.405504]
[1762521460372,1.71798655,3231.7,3230.9,0.405504]
[1762521460568,0.03868052,3231.6,3230.9,0.893104]
[1762521460996,1.261712,3231.8,3230.9,0.893104]
[1762521460997,0.002,3231.8,3231.5,0.4957]
[1762521461149,0.002,3231.8,3231.6,0.4957]
[1762521461563,0.002,3231.8,3231.6,0.9833]
[1762521462750,0.0012,3231.8,3231.1,0.405504]
[1762521463147,0.0012,3231.8,3231.2,0.4876]
[1762521463765,0.48568616,3231.7,3231.2,0.4876]
[1762521465182,0.48568616,3231.7,3231.6,0.4957]
[1762521466475,0.48568616,3231.7,3231.2,0.4876]
[1762521466795,0.48568616,3231.7,3231.6,0.4957]
[1762521468182,0.48568616,3231.7,3230.8,0.197]
[1762521468183,0.0769,3231.7,3230.8,0.197]
[1762521468393,0.0769,3231.7,3230.9,0.4876]
[1762521468394,1.336612,3231.7,3230.9,0.4876]
[1762521468601,1.07357456,3231.7,3230.9,0.4876]
[1762521468762,2.33328656,3231.7,3230.9,0.4876]
[1762521468962,1.259712,3231.4,3230.8,0.197]
[1762521469572,2.2349143,3231.7,3230.8,0.197]
[1762521469773,4.35420644,3231.6,3230.8,0.197]
[1762521470120,1.259712,3231.5,3230.8,0.197]
[1762521470320,0.9752023,3231.7,3230.9,0.893104]
[1762521470321,0.4857023,3231.7,3230.9,0.893104]
[1762521470821,0.4857023,3231.7,3230.9,0.405504]
[1762521471000,0.4857023,3231.7,3231.6,0.4957]
[1762521471515,0.4857023,3231.7,3231.6,0.9833]
[1762521472590,0.4857023,3231.7,3231.6,1.388804]
[1762521475623,0.4857023,3231.7,3231.6,0.4957]
[1762521475830,0.4857023,3231.7,3231.5,0.001]
[1762521476027,0.4857023,3231.7,3231.6,0.9833]
[1762521476551,0.4857023,3231.7,3231.6,1.388804]
[1762521477635,0.4857023,3231.7,3231.6,0.9833]
[1762521477849,0.4857023,3231.7,3231.6,1.388804]
[1762521478155,0.4857023,3231.7,3231.6,0.901204]
[1762521478554,0.4857023,3231.7,3231.6,1.388804]
[1762521480875,0.002,3232.3,3231.7,0.901204]
[1762521481082,0.002,3232.7,3231.7,0.901204]
[1762521481083,0.002,3232.7,3232.2,1.092604]
[1762521481239,0.002,3232.7,3232.4,0.901204]
[1762521481644,0.002,3232.7,3232.4,1.388804]
[1762521481846,0.002,3232.7,3232.4,4.64050092]
[1762521482129,0.002,3232.9,3232.7,0.405504]
[1762521482433,0.002,3232.9,3232.8,1.388804]
[1762521482704,0.002,3233.7,3233.1,0.405504]
[1762521482980,0.002,3235.6,3234.0,0.405504]
[1762521483189,0.002,3235.6,3234.4,0.405504]
[1762521483462,0.002,3235.6,3234.8,0.901204]
[1762521483828,0.002,3235.6,3234.8,1.388804]
[1762521484354,0.002,3235.6,3234.8,0.9833]
[1762521484660,3.09267582,3235.6,3234.5,0.4876]
[1762521484861,0.4835,3235.5,3234.4,0.405504]
[1762521485046,0.0012,3234.9,3234.4,0.868604]
[1762521486664,0.0012,3234.9,3234.6,0.405504]
[1762521486862,0.0012,3234.9,3234.8,0.862504]
[1762521487362,0.0012,3234.9,3234.8,1.325604]
[1762521487960,0.0012,3234.9,3234.8,0.405504]
[1762521488161,0.0012,3234.9,3234.8,1.325604]
[1762521488379,0.0012,3234.9,3234.8,1.76731472]
[1762521488588,0.002,3235.6,3235.1,0.405504]
[1762521488732,0.002,3235.6,3235.2,4.14680301]
[1762521489061,0.002,3235.6,3235.3,0.405504]
[1762521489266,0.002,3235.6,3235.3,0.868604]
[1762521489562,0.002,3235.6,3235.3,0.405504]
[1762521489765,0.002,3235.6,3235.5,0.862504]
[1762521490164,0.002,3235.6,3235.5,0.405504]
[1762521491280,0.002,3235.6,3234.7,0.1933]
[1762521491433,0.002,3235.6,3234.8,0.405504]
[1762521491629,0.002,3235.6,3234.7,0.1933]
[1762521491831,0.4855,3235.6,3234.1,0.4631]
[1762521492173,3.09090751,3235.3,3234.1,0.4631]
[1762521492469,0.79259075,3235.2,3234.1,0.4631]
[1762521492641,0.79259075,3235.2,3234.1,0.6564]
[1762521492841,0.30909075,3235.2,3234.1,0.6564]
[1762521493046,0.4855,3235.6,3234.2,0.868604]
[1762521493664,3.57619167,3235.6,3234.3,0.4631]
[1762521493852,0.4855,3235.6,3234.3,0.4631]
[1762521494054,0.4835,3235.5,3234.2,0.405504]
[1762521494238,1.743212,3235.5,3234.2,0.405504]
[1762521494442,1.74329867,3235.4,3234.1,0.1933]
[1762521494661,1.259712,3235.2,3234.2,0.405504]
[1762521494860,0.4835,3235.3,3234.2,0.405504]
[1762521495085,1.259712,3235.5,3234.2,0.868604]
[1762521495247,0.002,3235.6,3234.2,0.868604]
[1762521495447,0.002,3235.6,3234.3,0.4631]
[1762521495749,0.1963912,3235.6,3234.4,0.405504]
[1762521495950,0.002,3235.6,3234.4,0.405504]
[1762521496182,0.002,3235.6,3234.6,0.405504]
[1762521496584,0.002,3235.6,3234.8,0.405504]
[1762521496787,0.002,3235.6,3234.5,0.405504]
[1762521497288,0.002,3235.6,3234.7,0.405504]
[1762521497477,0.48508266,3235.4,3234.7,0.405504]
[1762521497679,0.48508266,3235.4,3234.8,0.405504]
[1762521498149,0.48508266,3235.4,3234.2,0.405504]
[1762521498351,0.48508266,3235.4,3234.9,0.405504]
[1762521498772,0.48508266,3235.4,3235.1,0.405504]
[1762521499088,0.002,3235.6,3235.3,0.457]
[1762521499392,0.002,3235.6,3235.4,0.405504]
[1762521499603,0.0754,3235.4,3234.2,0.4631]
[1762521499802,0.4835,3235.4,3234.2,0.4631]
[1762521500005,0.21295749,3235.3,3234.1,0.1933]
[1762521500302,1.743212,3235.4,3234.2,0.405504]
[1762521500490,1.259712,3235.2,3234.2,0.405504]
[1762521500696,0.4835,3235.3,3234.2,0.405504]
[1762521501209,0.4835,3235.3,3234.1,0.1933]
[1762521501412,0.4835,3235.3,3234.2,0.405504]
[1762521501618,1.743212,3235.3,3234.1,0.1933]
[1762521501769,0.4835,3235.3,3234.2,0.405504]
[1762521502078,0.002,3235.6,3234.4,0.405504]
[1762521502280,0.4855,3235.6,3234.4,0.405504]
[1762521503381,4.35051993,3235.4,3234.4,0.405504]
[1762521503784,0.4835,3235.3,3234.4,0.405504]
[1762521504115,1.74311723,3235.2,3234.2,0.405504]
[1762521504280,0.48340523,3235.2,3234.2,0.405504]
[1762521504475,0.4835,3235.3,3234.2,0.405504]
[1762521505005,1.745212,3235.6,3234.3,0.4631]
[1762521505230,0.4855,3235.6,3234.4,0.405504]
[1762521505716,0.4855,3235.6,3234.6,0.405504]
[1762521505870,1.259712,3235.4,3234.2,0.405504]
[1762521506077,2.17825658,3235.3,3234.2,0.405504]
[1762521506271,3.57440756,3235.3,3234.2,0.405504]
[1762521506479,0.4835,3235.2,3234.2,0.405504]
[1762521506888,0.002,3235.6,3234.2,0.405504]
[1762521506889,0.03863868,3235.1,3234.2,0.405504]
[1762521507192,0.002,3235.6,3234.4,0.405504]
[1762521507507,0.002,3235.6,3234.6,0.405504]
[1762521507681,0.002,3235.6,3234.7,0.405504]
[1762521508087,0.002,3235.6,3234.2,3.0919523]
[1762521508088,0.0012,3235.6,3234.8,0.4631]
[1762521509181,0.0012,3235.6,3234.5,0.405504]
[1762521509182,0.0012,3235.6,3234.1,0.1933]
[1762521509424,0.4835,3235.5,3234.4,0.4631]
[1762521509621,0.4835,3235.5,3234.1,0.1933]
[1762521509622,0.03863509,3235.4,3234.1,0.1933]
[1762521509919,0.4835,3235.5,3234.2,0.405504]
[1762521510116,0.4835,3235.5,3234.2,0.868604]
[1762521510327,1.259712,3235.4,3234.2,0.868604]
[1762521510530,0.48340189,3235.3,3234.2,0.868604]
[1762521510833,0.0012,3235.6,3234.4,0.405504]
[1762521511177,0.0012,3235.6,3234.5,0.4631]
[1762521512514,0.0012,3235.6,3234.6,0.405504]
[1762521513281,0.0012,3235.6,3234.7,0.405504]
[1762521513528,0.0012,3235.6,3235.5,0.862504]
[1762521513993,0.0766,3235.6,3234.6,0.4631]
[1762521514326,0.0012,3235.6,3234.7,0.405504]
[1762521514709,0.0012,3235.6,3234.9,0.405504]
[1762521515624,0.4652,3235.6,3234.5,0.405504]
[1762521516131,0.4652,3235.6,3234.6,0.405504]
[1762521516631,0.0386339,3235.5,3234.1,0.1933]
[1762521516922,0.0386339,3235.5,3234.0,0.001]
[1762521516923,0.2818,3234.7,3234.0,0.001]
[1762521519120,0.49994465,3234.6,3234.0,0.001]
[1762521519794,0.4613,3234.6,3234.0,0.001]
[1762521520942,0.0984,3234.1,3234.0,0.001]
[1762521521719,0.4613,3234.6,3234.0,0.001]
[1762521523642,0.1871,3234.7,3234.1,0.1869]
[1762521523844,0.1871,3234.7,3234.0,0.001]
[1762521524031,0.1871,3234.7,3234.1,0.1869]
[1762521524235,0.48514959,3234.6,3234.0,0.001]
[1762521524692,0.96314959,3234.6,3234.0,0.001]
[1762521524823,0.0818,3234.1,3234.0,0.001]
[1762521525030,0.95924959,3234.6,3234.0,0.001]
[1762521525345,0.48514959,3234.6,3234.1,0.1869]
[1762521525540,0.6595,3234.9,3234.1,0.1869]
[1762521525851,0.1815,3234.9,3234.0,0.001]
[1762521526058,0.478,3234.8,3234.0,0.001]
[1762521526416,0.1919212,3234.7,3234.0,0.001]
[1762521526639,0.478,3234.8,3234.0,0.001]
[1762521528127,0.0874,3234.1,3234.0,0.001]
[1762521529172,0.4741,3234.5,3234.0,0.001]
[1762521529875,0.0912,3234.1,3234.0,0.001]
[1762521530679,0.4733,3234.5,3234.0,0.001]
[1762521531013,3.18325033,3234.1,3234.0,0.001]
[1762521531307,4.44296233,3234.1,3234.0,0.001]
[1762521531597,3.09262409,3233.5,3233.4,0.001]
[1762521531897,1.708412,3233.5,3233.4,0.001]
[1762521532383,4.80103609,3233.5,3233.4,0.001]
[1762521532546,5.08663609,3233.5,3233.4,0.001]
[1762521532750,1.994012,3233.5,3233.4,0.001]
[1762521533057,5.08663609,3233.5,3233.4,0.001]
[1762521533257,1.994012,3233.5,3233.4,0.001]
[1762521534058,1.708412,3233.5,3233.4,0.001]
[1762521534386,2.1648532,3233.5,3233.4,0.001]
[1762521535049,0.1018,3233.8,3233.4,0.001]
[1762521535675,0.478,3234.2,3233.4,0.001]
[1762521535881,0.478,3234.2,3233.4,0.4936]
[1762521536098,3.091578,3234.6,3233.4,0.4936]
[1762521536306,1.259712,3234.5,3233.4,0.4936]
[1762521536606,0.482929,3234.4,3233.4,0.4936]
[1762521536803,0.1815,3234.9,3233.5,0.405504]
[1762521537008,0.478,3234.8,3233.4,0.001]
[1762521537166,3.09163127,3234.6,3233.4,0.001]
[1762521537368,3.09168572,3234.5,3233.4,0.001]
[1762521537615,1.61741946,3234.4,3233.4,0.001]
[1762521537782,1.259712,3234.5,3233.5,0.4926]
[1762521538100,1.737712,3234.8,3233.6,0.405504]
[1762521538302,0.478,3234.8,3233.6,0.405504]
[1762521538506,0.478,3234.8,3233.7,0.4926]
[1762521538675,0.37507982,3234.7,3233.7,0.4926]
[1762521539182,0.37507982,3234.7,3233.4,0.001]
[1762521539391,0.478,3234.6,3233.4,0.001]
[1762521539581,0.478,3234.6,3233.6,0.405504]
[1762521539781,0.1815,3234.9,3233.6,0.405504]
[1762521539979,0.1815,3234.9,3233.8,0.405504]
[1762521540192,0.6595,3234.9,3233.8,0.898104]
[1762521540379,0.1815,3234.9,3233.8,0.898104]
[1762521540579,0.1815,3234.9,3234.0,0.405504]
[1762521540807,6.36160213,3235.6,3234.8,0.4715]
[1762521540808,0.0012,3235.6,3234.8,0.4715]
[1762521541204,0.0012,3235.6,3234.9,0.4926]
[1762521541371,0.0012,3235.6,3235.0,0.405504]
[1762521541907,0.0012,3235.6,3235.5,0.877004]
[1762521542506,0.0012,3235.6,3235.5,1.369604]
[1762521543607,0.002,3236.0,3235.6,3.09061143]
[1762521543803,0.002,3236.0,3235.9,0.877004]
[1762521544061,0.002,3236.0,3235.9,1.369604]
[1762521544496,0.002,3236.0,3235.9,4.45993435]
[1762521544712,0.0012,3237.3,3236.3,0.405504]
[1762521544910,0.0012,3237.3,3237.2,0.6348]
[1762521545449,0.4691,3237.3,3236.1,0.4622]
[1762521545651,0.4691,3237.3,3234.1,0.1869]
[1762521545652,0.03861361,3237.2,3235.7,0.4622]
[1762521545947,0.1866,3236.2,3235.3,0.4622]
[1762521546310,0.184,3236.5,3235.3,0.4622]
[1762521546717,3.74056677,3236.5,3235.3,0.4622]
[1762521546940,0.6508,3236.5,3235.3,0.4622]
[1762521547349,0.184,3237.2,3235.3,0.4622]
[1762521547554,0.002,3237.7,3236.5,0.405504]
[1762521547555,0.184,3237.5,3236.5,0.405504]
[1762521547837,0.002,3237.7,3236.4,0.6348]
[1762521547838,0.002,3237.7,3237.2,1.040304]
[1762521548330,0.002,3237.7,3237.2,1.502504]
[1762521551458,0.002,3237.7,3237.2,1.040304]
[1762521551930,0.002,3237.7,3237.2,1.502504]
[1762521552565,0.002,3237.7,3237.2,1.96167936]
[1762521552939,0.002,3237.7,3237.2,1.502504]
[1762521553471,0.002,3237.7,3237.2,1.097]
[1762521553472,0.0004,3237.3,3237.2,1.097]
[1762521553670,0.0004,3237.3,3237.2,1.502504]
[1762521556292,0.0004,3237.3,3237.2,5.85130533]
[1762521556492,0.002,3238.0,3237.6,0.856104]
[1762521556655,0.002,3238.0,3237.9,0.856104]
[1762521557088,0.002,3238.0,3237.9,1.318304]
[1762521557591,0.002,3238.0,3237.9,0.4506]
[1762521557889,0.2657,3238.0,3237.2,0.1842]
[1762521558089,0.2657,3238.0,3237.2,0.6464]
[1762521558090,0.002,3238.0,3237.2,0.6464]
[1762521558263,0.002,3238.0,3237.9,0.4506]
[1762521558468,0.002,3238.0,3237.9,0.405504]
[1762521558679,0.002,3238.0,3237.9,1.318304]
[1762521560263,0.002,3238.0,3237.9,1.75899259]
[1762521560462,0.002,3238.0,3237.9,4.84741409]
[1762521561082,0.002,3238.0,3237.9,1.75899259]
[1762521561478,0.002,3238.0,3237.9,4.84741409]
[1762521561674,0.002,3238.5,3238.1,0.405504]
[1762521561989,0.002,3238.5,3238.4,4.12824866]
[1762521562386,0.002,3238.5,3238.4,4.59044866]
[1762521562610,0.002,3238.8,3238.6,0.405504]
[1762521562814,0.002,3238.8,3238.7,0.856104]
[1762521562992,0.002,3238.8,3238.7,1.318304]
[1762521563309,0.002,3238.8,3238.7,4.40596262]
[1762521563508,0.002,3238.8,3238.7,5.15534147]
[1762521563814,0.002,3238.8,3238.7,2.06768285]
[1762521564017,0.002,3238.8,3238.7,1.318304]
[1762521564584,0.002,3238.8,3238.7,0.4506]
[1762521564785,0.002,3238.8,3238.4,0.6464]
[1762521565081,0.002,3238.8,3238.5,0.4622]
[1762521565282,0.002,3238.8,3238.5,0.405504]
[1762521565480,0.002,3238.8,3238.4,0.6464]
[1762521565776,0.002,3238.8,3238.7,0.4506]
[1762521566215,0.002,3238.8,3238.1,0.4622]
[1762521566375,0.002,3238.8,3238.1,0.6464]
[1762521566915,0.002,3238.8,3238.3,0.405504]
[1762521567212,0.002,3238.8,3238.7,0.4506]
[1762521567828,0.002,3238.8,3238.7,0.9128]
[1762521568020,0.002,3238.8,3238.2,0.405504]
[1762521568923,0.002,3238.8,3237.7,0.6464]
[1762521569107,0.002,3238.8,3237.8,0.4622]
[1762521569856,0.002,3238.8,3237.9,0.405504]
[1762521570141,0.48652956,3238.8,3237.9,0.405504]
[1762521570330,0.48652956,3238.8,3238.1,0.405504]
[1762521570729,0.48652956,3238.8,3238.3,0.405504]
[1762521571102,0.48652956,3238.8,3238.4,0.405504]
[1762521571306,0.48652956,3238.8,3237.8,0.405504]
[1762521571507,0.48652956,3238.8,3237.8,0.867704]
[1762521571749,0.48652956,3238.8,3237.8,2.127416]
[1762521571964,0.48652956,3238.8,3238.0,0.405504]
[1762521572109,0.48652956,3238.8,3237.9,1.00221768]
[1762521572110,0.48652956,3238.8,3237.7,0.1842]
[1762521572310,0.4668,3238.7,3237.7,0.1842]
[1762521573155,0.4668,3238.7,3237.2,1.443912]
[1762521573156,0.4668,3238.7,3237.5,0.4622]
[1762521573454,0.48652956,3238.8,3237.6,0.405504]
[1762521573868,0.48652956,3238.8,3237.8,0.405504]
[1762521574344,0.48652956,3238.8,3238.0,0.405504]
[1762521574541,0.48652956,3238.8,3238.2,0.405504]
[1762521574964,0.48652956,3238.8,3238.0,0.405504]
[1762521575147,0.48652956,3238.8,3238.4,0.405504]
[1762521575336,0.48652956,3238.8,3237.9,0.4731]
[1762521575538,0.48652956,3238.8,3238.0,0.405504]
[1762521575836,0.48652956,3238.8,3237.2,0.1842]
[1762521575837,0.48652956,3238.8,3237.9,0.405504]
[1762521576070,0.48652956,3238.8,3238.1,0.405504]
[1762521576280,0.48572956,3238.8,3238.1,0.405504]
[1762521576482,0.48572956,3238.8,3238.2,0.405504]
[1762521576839,0.48572956,3238.8,3238.3,0.405504]
[1762521577040,0.48572956,3238.8,3238.4,3.84]
[1762521577272,0.48572956,3238.8,3238.5,0.8300544]
[1762521577496,0.0012,3238.8,3238.7,0.4752]
[1762521577691,0.0012,3238.8,3238.2,0.878604]
[1762521578153,0.0012,3238.8,3238.7,0.405504]
[1762521579406,0.0012,3238.8,3238.7,0.341524]
[1762521579897,0.0012,3238.8,3238.2,0.4731]
[1762521580099,0.0012,3238.8,3238.3,0.43131]
[1762521580267,0.0012,3238.8,3238.3,0.91031]
[1762521580713,0.0012,3238.8,3238.7,0.4912]
[1762521581160,0.0012,3238.8,3238.6,0.001]
[1762521581974,0.0012,3238.8,3238.7,0.896704]
[1762521582176,0.0012,3238.8,3238.7,0.405504]
[1762521584314,0.7663,3238.8,3238.6,0.001]
[1762521584463,0.1897,3238.8,3238.6,0.001]
[1762521584662,0.0012,3238.8,3238.6,0.001]
[1762521585692,0.0012,3238.8,3238.7,0.896704]
[1762521586258,0.0012,3238.8,3238.7,0.405504]
[1762521586458,0.0012,3238.8,3238.7,0.896704]
[1762521586956,0.1038,3238.8,3238.7,0.405504]
[1762521587768,0.1038,3238.8,3238.6,0.001]
[1762521587769,0.5769,3238.8,3238.6,0.001]
[1762521587969,0.0047,3238.7,3238.6,0.001]
[1762521588297,0.1926743,3238.8,3238.6,0.001]
[1762521588616,0.1017,3238.7,3238.6,0.001]
[1762521589998,0.1017,3238.7,3238.3,0.001]
[1762521589999,0.2567712,3238.7,3238.0,0.001]
[1762521590168,1.274512,3238.1,3238.0,0.001]
[1762521591893,1.75922683,3238.1,3238.0,0.001]
[1762521594003,1.274512,3238.1,3238.0,0.001]
[1762521595015,0.1893,3238.9,3238.0,0.001]
[1762521595303,0.0148,3238.6,3238.0,0.001]
[1762521595682,1.274512,3238.6,3238.0,0.001]
[1762521595888,0.47481734,3238.5,3238.0,0.001]
[1762521596212,0.43621923,3238.5,3238.0,0.001]
[1762521596521,0.1893,3238.9,3238.0,0.001]
[1762521596705,0.0148,3238.4,3238.0,0.001]
[1762521597605,0.0148,3238.8,3238.0,0.001]
[1762521598893,0.002,3238.3,3238.0,0.001]
[1762521599094,0.0012,3238.3,3238.0,0.001]
[1762521599813,0.0012,3238.3,3238.2,0.896704]
[1762521600222,0.0012,3238.3,3238.2,1.375704]
[1762521600794,0.0012,3238.3,3238.2,0.896704]
[1762521601118,0.0012,3238.3,3238.2,1.375704]
[1762521601321,0.0012,3238.3,3238.2,7.81890873]
[1762521601485,0.002,3239.2,3238.2,7.81890873]
[1762521601486,0.002,3239.2,3239.0,0.405504]
[1762521601687,0.27,3241.5,3239.7,0.405504]
[1762521601890,0.16147827,3241.9,3239.9,0.405504]
[1762521602082,0.1849,3241.5,3240.3,0.405504]
[1762521602406,3.08361036,3243.0,3240.7,9.52892479]
[1762521602407,0.1858,3242.0,3240.7,9.52892479]
[1762521602585,0.1858,3242.0,3241.5,0.405504]
[1762521602781,0.1858,3242.0,3240.8,0.95289248]
[1762521602782,0.31275763,3241.9,3240.8,0.95289248]
[1762521603122,0.1849,3240.9,3240.2,0.1823]
[1762521603326,0.31275763,3241.9,3240.2,0.1823]
[1762521603327,0.2742,3241.9,3240.8,0.4912]
[1762521603530,0.1858,3242.0,3240.9,0.405504]
[1762521603886,0.1858,3242.0,3241.0,0.405504]
[1762521604104,0.4591,3242.0,3240.6,0.405504]
[1762521604321,0.4591,3242.0,3240.6,0.884504]
[1762521604533,0.4591,3242.0,3240.8,0.405504]
[1762521604688,0.2733,3241.9,3240.8,0.405504]
[1762521605285,0.1858,3242.0,3240.9,0.405504]
[1762521605729,0.0933,3242.2,3241.1,0.405504]
[1762521606089,0.0933,3242.2,3241.3,0.405504]
[1762521606485,0.0933,3242.2,3241.3,0.891504]
[1762521606685,3.23926224,3243.7,3241.3,0.891504]
[1762521606686,0.3648,3242.9,3241.3,0.891504]
[1762521607003,6.44320473,3243.8,3241.5,0.405504]
[1762521607206,0.2669,3243.3,3241.7,1.259712]
[1762521607416,0.2669,3243.7,3241.9,0.405504]
[1762521607622,0.1187,3243.4,3242.1,0.405504]
[1762521607991,0.2669,3243.3,3242.1,0.405504]
[1762521608994,0.1187,3243.4,3241.4,0.405504]
[1762521609211,0.1187,3243.4,3242.3,0.405504]
[1762521609750,1.259712,3243.2,3241.8,0.486]
[1762521609898,0.1645312,3243.2,3241.9,0.405504]
[1762521610100,0.1187,3243.4,3241.9,0.405504]
[1762521610300,0.1187,3243.4,3241.8,0.486]
[1762521610301,1.497306,3244.0,3243.4,0.405504]
[1762521611168,0.1187,3243.9,3243.4,0.405504]
[1762521611300,1.497306,3244.0,3243.4,0.891504]
[1762521611833,1.497306,3244.0,3243.4,0.405504]
[1762521612135,1.6655266,3244.0,3243.4,0.405504]
[1762521612337,1.497306,3244.0,3243.4,0.405504]
[1762521612703,0.15723386,3243.9,3243.1,0.405504]
[1762521613043,0.1187,3243.9,3243.1,0.405504]
[1762521613211,0.1187,3243.9,3242.8,0.486]
[1762521613805,0.1187,3243.9,3242.6,0.1978]
[1762521613806,0.2669,3243.8,3242.6,0.1978]
[1762521614029,0.2669,3243.8,3242.4,0.1978]
[1762521614414,0.2669,3243.8,3242.6,0.405504]
[1762521614740,0.2669,3243.8,3242.4,0.1978]
[1762521614741,0.1645312,3243.7,3242.4,0.1978]
[1762521614958,1.259712,3243.6,3242.4,0.1978]
[1762521615157,1.259712,3243.3,3242.2,0.1978]
[1762521615355,3.08324941,3243.4,3242.2,0.1978]
[1762521615356,0.2669,3243.5,3242.2,0.1978]
[1762521615519,1.259712,3243.4,3242.3,0.405504]
[1762521615719,0.2669,3243.4,3242.2,0.1978]
[1762521615953,1.526612,3243.3,3242.2,0.1978]
[1762521616260,1.259712,3243.1,3241.5,0.486]
[1762521616561,0.2669,3243.3,3242.1,0.405504]
[1762521616853,1.259712,3243.2,3242.1,0.405504]
[1762521617059,0.2669,3243.3,3241.8,0.486]
[1762521617259,1.259712,3243.0,3241.8,0.486]
[1762521617457,0.43431895,3242.9,3241.8,0.486]
[1762521617657,0.3648,3243.0,3241.4,0.486]
[1762521617957,3.0850468,3243.6,3241.4,0.486]
[1762521617958,1.259712,3242.8,3241.4,0.486]
[1762521618147,3.08375164,3242.9,3241.4,0.486]
[1762521618148,1.259712,3242.9,3241.4,0.486]
[1762521618346,1.259712,3242.7,3241.4,0.486]
[1762521618542,0.0989,3242.9,3241.4,0.486]
[1762521618742,0.0989,3242.9,3241.5,0.405504]
[1762521618917,0.3856,3243.9,3241.5,0.405504]
[1762521619122,0.3856,3243.9,3241.4,0.486]
[1762521619123,0.3856,3243.9,3241.9,0.405504]
[1762521619468,0.3856,3243.9,3241.7,0.405504]
[1762521619469,0.2669,3243.5,3241.7,0.405504]
[1762521619629,0.2669,3243.5,3241.7,0.891504]
[1762521619630,0.3351919,3243.4,3241.7,0.891504]
[1762521619821,1.259712,3243.2,3241.7,0.891504]
[1762521620027,0.03854336,3243.1,3241.7,0.891504]
[1762521620257,0.2669,3243.1,3241.7,0.891504]
[1762521620523,0.2669,3243.1,3241.4,0.405504]
[1762521620725,0.2689,3243.6,3241.9,0.405504]
[1762521620970,3.08334742,3243.3,3241.9,0.405504]
[1762521621138,0.43430594,3243.2,3241.9,0.405504]
[1762521621331,0.43430594,3243.2,3242.0,0.486]
[1762521621531,0.2669,3243.4,3242.0,0.486]
[1762521621739,3.34929183,3243.4,3242.2,0.405504]
[1762521622558,3.08319183,3243.4,3242.2,0.405504]
[1762521622756,0.002,3243.6,3242.2,0.891504]
[1762521623430,0.002,3243.6,3242.3,0.486]
[1762521623626,1.259712,3243.4,3242.3,0.486]
[1762521623924,0.31048113,3243.6,3242.1,0.1978]
[1762521623925,0.48396201,3243.3,3242.4,0.891504]
[1762521624343,0.002,3243.6,3243.3,0.405504]
[1762521624747,0.002,3243.6,3243.5,0.452]
[1762521625280,0.002,3243.6,3243.5,0.938]
[1762521625928,0.002,3243.6,3243.5,1.343504]
[1762521627428,0.002,3243.6,3243.5,0.857504]
[1762521627641,0.0989,3246.0,3243.5,7.91670873]
[1762521627944,0.1842,3245.6,3243.9,3.94021308]
[1762521628264,1.259712,3245.5,3243.9,3.94021308]
[1762521628469,0.6571,3245.6,3243.9,4.42621308]
[1762521628856,1.259712,3245.5,3243.9,4.42621308]
[1762521629042,1.259712,3245.5,3243.9,1.343504]
[1762521629243,0.6571,3245.6,3243.9,1.343504]
[1762521629644,0.1842,3245.6,3243.9,1.343504]
[1762521629841,0.4729,3245.5,3243.9,1.343504]
[1762521630062,1.259712,3245.5,3243.9,4.42621308]
[1762521630329,0.1842,3245.6,3243.9,5.68592508]
[1762521630453,0.1842,3245.6,3243.9,6.562799]
[1762521630802,0.096,3244.9,3243.9,3.48008992]
[1762521631110,0.096,3244.9,3243.9,2.603216]
[1762521631413,0.1842,3245.6,3243.9,5.68592508]
[1762521631885,1.443912,3245.6,3243.9,2.603216]
[1762521632409,0.1842,3245.6,3243.9,2.603216]
[1762521632611,0.096,3244.9,3243.9,1.343504]
[1762521633959,0.096,3244.9,3243.9,0.938]
[1762521634491,0.4729,3245.3,3243.9,1.74558315]
[1762521634700,0.4729,3245.3,3243.9,4.82829223]
[1762521634993,0.4729,3245.3,3243.9,1.74558315]
[1762521635193,0.096,3244.8,3243.9,1.343504]
[1762521635705,0.002,3244.4,3243.9,1.343504]
[1762521636060,0.002,3244.4,3243.9,0.857504]
[1762521636287,0.002,3244.4,3243.9,1.335204]
[1762521636490,0.002,3244.4,3243.9,0.405504]
[1762521636661,0.002,3244.4,3243.5,0.4777]
[1762521637477,0.002,3244.4,3243.9,0.4541]
[1762521637801,0.002,3244.4,3243.6,0.405504]
[1762521638101,0.002,3244.4,3243.2,0.4777]
[1762521638282,0.002,3244.4,3243.3,0.405504]
[1762521638482,0.002,3244.4,3243.3,0.4777]
[1762521638869,0.002,3244.4,3243.4,0.405504]
[1762521639068,0.002,3244.4,3243.4,0.883204]
[1762521639766,0.002,3244.4,3243.6,0.405504]
[1762521639990,0.002,3244.4,3243.9,0.4232]
[1762521640367,0.002,3244.4,3243.8,0.405504]
[1762521640783,0.002,3244.4,3243.9,1.310704]
[1762521640969,0.002,3244.4,3243.9,0.405504]
[1762521641164,2.080606,3244.0,3242.9,0.4827]
[1762521641404,1.999306,3244.0,3243.1,0.405504]
[1762521641609,1.999306,3244.0,3243.9,0.867204]
[1762521641779,1.999306,3244.0,3243.9,1.349904]
[1762521641987,1.999306,3244.0,3243.9,4.87587642]
[1762521642185,1.999306,3244.0,3243.9,1.79316734]